[Event "Schack-SM 2022: Mastarklassen-Elit"]
[Site "Fyrishov, Idrottsgatan 2, Uppsala, Sweden"]
[Date "2022.07.07"]
[Round "6.1"]
[White "Johansson, Jan"]
[Black "Andersson, Tommy"]
[Result "1/2-1/2"]
[TimeControl "90 minutes for 40 moves + 30 minutes for the rest of the game + 30 seconds per move from move one."]
[WhiteTitle "IM"]
[BlackTitle "IM"]
[WhiteFideId "1700103"]
[BlackFideId "1703803"]
[WhiteElo "2306"]
[BlackElo "2384"]

1. d4 {[%clk 01:30:58]} d5 {[%clk 01:30:41]} {[%emt 00:00:20]} 2. Nf3 {[%clk
01:31:20]} {[%emt 00:00:07]} Nf6 {[%clk 01:31:02]} {[%emt 00:00:09]} 3. Bf4
{[%clk 01:30:24]} {[%emt 00:01:27]} c6 {[%clk 01:29:12]} {[%emt 00:02:20]} 4.
Nbd2 {[%clk 01:29:16]} {[%emt 00:01:38]} g6 {[%clk 01:26:58]} {[%emt 00:02:44]}
5. e3 {[%clk 01:24:21]} {[%emt 00:05:26]} Bg7 {[%clk 01:27:06]} {[%emt
00:00:22]} 6. Bd3 {[%clk 01:23:37]} {[%emt 00:01:12]} O-O {[%clk 01:26:09]}
{[%emt 00:01:27]} 7. h3 {[%clk 01:23:43]} {[%emt 00:00:25]} Qb6 {[%clk
01:22:39]} {[%emt 00:04:00]} 8. b3 {[%clk 01:18:51]} {[%emt 00:05:22]} c5
{[%clk 01:20:47]} {[%emt 00:02:22]} 9. c3 {[%clk 01:14:25]} {[%emt 00:04:56]}
Nc6 {[%clk 01:19:24]} {[%emt 00:01:52]} 10. O-O {[%clk 01:14:43]} {[%emt
00:00:13]} Nd7 {[%clk 01:13:16]} {[%emt 00:06:38]} 11. e4 {[%clk 01:05:02]}
{[%emt 00:10:11]} e6 {[%clk 01:09:50]} {[%emt 00:03:57]} 12. dxc5 {[%clk
00:46:11]} {[%emt 00:19:21]} Qxc5 {[%clk 00:55:44]} {[%emt 00:14:36]} 13. Rc1
{[%clk 00:45:15]} {[%emt 00:01:26]} Nde5 {[%clk 00:50:11]} {[%emt 00:06:02]} 14.
Bb1 {[%clk 00:41:05]} {[%emt 00:04:40]} Nxf3+ {[%clk 00:41:11]} {[%emt
00:09:29]} 15. Qxf3 {[%clk 00:37:35]} {[%emt 00:04:01]} a5 {[%clk 00:38:46]}
{[%emt 00:02:55]} 16. Qg3 {[%clk 00:33:51]} {[%emt 00:04:15]} Re8 {[%clk
00:26:48]} {[%emt 00:12:28]} 17. Rfd1 {[%clk 00:26:54]} {[%emt 00:07:26]} Qe7
{[%clk 00:24:34]} {[%emt 00:02:45]} 18. Nf3 {[%clk 00:21:45]} {[%emt 00:05:38]}
dxe4 {[%clk 00:21:24]} {[%emt 00:03:40]} 19. Bd6 {[%clk 00:20:14]} {[%emt
00:02:01]} Qf6 {[%clk 00:10:28]} {[%emt 00:11:26]} 20. Bxe4 {[%clk 00:18:39]}
{[%emt 00:02:05]} h6 {[%clk 00:08:48]} {[%emt 00:02:09]} 21. Bxc6 {[%clk
00:08:42]} {[%emt 00:10:28]} bxc6 {[%clk 00:09:16]} {[%emt 00:00:02]} 22. Be5
{[%clk 00:08:58]} {[%emt 00:00:13]} Qf5 {[%clk 00:07:01]} {[%emt 00:02:46]} 23.
Bxg7 {[%clk 00:09:11]} {[%emt 00:00:17]} Kxg7 {[%clk 00:07:30]} {[%emt
00:00:02]} 24. Qc7 {[%clk 00:09:06]} {[%emt 00:00:34]} c5 {[%clk 00:07:13]}
{[%emt 00:00:48]} 25. Ne5 {[%clk 00:08:19]} {[%emt 00:01:15]} a4 {[%clk
00:02:50]} {[%emt 00:04:54]} 26. b4 {[%clk 00:07:05]} {[%emt 00:01:44]} cxb4
{[%clk 00:03:08]} {[%emt 00:00:12]} 27. cxb4 {[%clk 00:07:30]} {[%emt
00:00:05]} Rf8 {[%clk 00:02:15]} {[%emt 00:01:23]} 28. Rc5 {[%clk 00:06:19]}
{[%emt 00:01:40]} Qe4 {[%clk 00:02:10]} {[%emt 00:00:35]} 29. Rd3 {[%clk
00:04:38]} {[%emt 00:02:11]} Qb7 {[%clk 00:01:29]} {[%emt 00:01:11]} 30. Rg3
{[%clk 00:03:33]} {[%emt 00:01:35]} Qxc7 {[%clk 00:01:29]} {[%emt 00:00:30]} 31.
Rxc7 {[%clk 00:03:58]} {[%emt 00:00:06]} Kf6 {[%clk 00:01:14]} {[%emt
00:00:45]} 32. Nxg6 {[%clk 00:03:15]} {[%emt 00:01:12]} Rg8 {[%clk 00:01:14]}
{[%emt 00:00:31]} 33. Nf4 {[%clk 00:02:26]} {[%emt 00:01:19]} Rxg3 {[%clk
00:01:41]} {[%emt 00:00:03]} 34. Nh5+ {[%clk 00:02:40]} {[%emt 00:00:15]} Ke5
{[%clk 00:00:44]} {[%emt 00:01:28]} 35. Nxg3 {[%clk 00:03:03]} {[%emt
00:00:06]} f5 {[%clk 00:01:10]} {[%emt 00:00:04]} 36. Ne2 {[%clk 00:03:07]}
{[%emt 00:00:26]} Kd6 {[%clk 00:01:09]} {[%emt 00:00:33]} 37. Rc5 {[%clk
00:02:13]} {[%emt 00:01:23]} a3 {[%clk 00:00:54]} {[%emt 00:00:46]} 38. Nd4
{[%clk 00:01:12]} {[%emt 00:01:30]} Rb8 {[%clk 00:00:43]} {[%emt 00:00:41]} 39.
Nc2 {[%clk 00:00:55]} {[%emt 00:00:47]} Bb7 {[%clk 00:00:34]} {[%emt 00:00:40]}
40. Nxa3 {[%clk 00:00:54]} {[%emt 00:00:31]} Bd5 {[%clk 00:00:54]} {[%emt
00:00:09]} 41. Nb5+ {[%clk 00:00:44]} {[%emt 00:00:40]} Ke5 {[%clk 00:01:10]}
{[%emt 00:00:15]} 42. a3 {[%clk 00:00:45]} {[%emt 00:00:29]} Ke4 {[%clk
00:26:28]} {[%emt 00:05:11]} 43. f3+ {[%clk 00:26:47]} {[%emt 00:04:27]} Kd3
{[%clk 00:23:58]} {[%emt 00:03:01]} 44. Kf2 {[%clk 00:26:38]} {[%emt 00:00:39]}
f4 {[%clk 00:20:05]} {[%emt 00:04:23]} 45. Nc3 {[%clk 00:25:28]} {[%emt
00:01:40]} Kd4 {[%clk 00:16:38]} {[%emt 00:03:57]} 46. Nb5+ {[%clk 00:18:15]}
{[%emt 00:07:43]} Kd3 {[%clk 00:16:58]} {[%emt 00:00:10]} 47. Ke1 {[%clk
00:17:43]} {[%emt 00:01:02]} Bc4 {[%clk 00:17:05]} {[%emt 00:00:24]} 48. Nd6
{[%clk 00:18:02]} {[%emt 00:00:09]} Bd5 {[%clk 00:16:52]} {[%emt 00:00:43]} 49.
Rc1 {[%clk 00:17:42]} {[%emt 00:00:50]} Rb6 {[%clk 00:15:08]} {[%emt 00:02:15]}
50. Nf7 {[%clk 00:14:53]} {[%emt 00:03:19]} Ra6 {[%clk 00:14:36]} {[%emt
00:01:03]} 51. Ra1 {[%clk 00:13:54]} {[%emt 00:01:29]} h5 {[%clk 00:11:48]}
{[%emt 00:03:18]} 52. Ne5+ {[%clk 00:13:53]} {[%emt 00:00:30]} Kc2 {[%clk
00:10:56]} {[%emt 00:01:22]} 53. b5 {[%clk 00:13:44]} {[%emt 00:00:38]} Ra5
{[%clk 00:09:57]} {[%emt 00:01:30]} 54. Ng6 {[%clk 00:13:17]} {[%emt 00:00:57]}
Ra4 {[%clk 00:03:08]} {[%emt 00:07:19]} 55. Rd1 {[%clk 00:13:27]} {[%emt
00:00:19]} Bc4 {[%clk 00:02:23]} {[%emt 00:01:15]} 56. Nxf4 {[%clk 00:10:08]}
{[%emt 00:03:49]} Rxa3 {[%clk 00:02:39]} {[%emt 00:00:15]} 57. Rd4 {[%clk
00:07:39]} {[%emt 00:03:00]} Kc3 {[%clk 00:01:19]} {[%emt 00:01:50]} 58. Re4
{[%clk 00:07:32]} {[%emt 00:00:37]} Ra1+ {[%clk 00:01:25]} {[%emt 00:00:23]} 59.
Kf2 {[%clk 00:07:53]} {[%emt 00:00:09]} Rb1 {[%clk 00:00:44]} {[%emt 00:01:11]}
60. Nxh5 {[%clk 00:07:47]} {[%emt 00:00:36]} Rxb5 {[%clk 00:00:49]} {[%emt
00:00:24]} 61. Nf4 {[%clk 00:07:00]} {[%emt 00:01:17]} e5 {[%clk 00:00:55]}
{[%emt 00:00:25]} 62. Ne2+ {[%clk 00:04:09]} {[%emt 00:03:20]} Kd3 {[%clk
00:01:11]} {[%emt 00:00:14]} 63. Re3+ {[%clk 00:04:10]} {[%emt 00:00:29]} Kd2
{[%clk 00:01:36]} {[%emt 00:00:06]} 64. Ng3 {[%clk 00:02:45]} {[%emt 00:01:54]}
Bd3 {[%clk 00:01:49]} {[%emt 00:00:18]} 65. Ne4+ {[%clk 00:02:52]} {[%emt
00:00:23]} Kc2 {[%clk 00:02:16]} {[%emt 00:00:04]} 66. g4 {[%clk 00:03:08]}
{[%emt 00:00:13]} Rb1 {[%clk 00:02:31]} {[%emt 00:00:15]} 67. g5 {[%clk
00:02:59]} {[%emt 00:00:39]} Bb5 {[%clk 00:01:50]} {[%emt 00:01:11]} 68. Rc3+
{[%clk 00:02:59]} {[%emt 00:00:29]} Kd1 {[%clk 00:02:00]} {[%emt 00:00:20]} 69.
g6 {[%clk 00:03:09]} {[%emt 00:00:21]} Rb2+ {[%clk 00:02:01]} {[%emt 00:00:29]}
70. Kg3 {[%clk 00:03:04]} {[%emt 00:00:35]} Bf1 {[%clk 00:02:20]} {[%emt
00:00:10]} 71. Nf2+ {[%clk 00:02:50]} {[%emt 00:00:44]} Kd2 {[%clk 00:02:48]}
{[%emt 00:00:03]} 72. Rc6 {[%clk 00:02:30]} {[%emt 00:00:49]} Rb7 {[%clk
00:02:05]} {[%emt 00:01:14]} 73. h4 {[%clk 00:02:48]} {[%emt 00:00:11]} Be2
{[%clk 00:02:21]} {[%emt 00:00:15]} 74. Rd6+ {[%clk 00:02:53]} {[%emt
00:00:25]} Ke1 {[%clk 00:02:39]} {[%emt 00:00:12]} 75. Rf6 {[%clk 00:03:08]}
{[%emt 00:00:15]} Bc4 {[%clk 00:02:27]} {[%emt 00:00:43]} 76. h5 {[%clk
00:02:39]} {[%emt 00:00:58]} Rb2 {[%clk 00:02:52]} {[%emt 00:00:05]} 77. Nh3
{[%clk 00:02:40]} {[%emt 00:00:28]} Bf1 {[%clk 00:02:43]} {[%emt 00:00:40]} 78.
Ng5 {[%clk 00:01:29]} {[%emt 00:01:40]} Rg2+ {[%clk 00:01:30]} {[%emt
00:01:44]} 79. Kh4 {[%clk 00:01:52]} {[%emt 00:00:06]} Rh2+ {[%clk 00:00:49]}
{[%emt 00:01:12]} 80. Kg4 {[%clk 00:02:16]} {[%emt 00:00:05]} Rg2+ {[%clk
00:01:13]} {[%emt 00:00:07]} 81. Kf5 {[%clk 00:02:36]} {[%emt 00:00:09]} Bd3+
{[%clk 00:01:24]} {[%emt 00:00:19]} 82. Ne4 {[%clk 00:03:01]} {[%emt 00:00:07]}
Ke2 {[%clk 00:01:21]} {[%emt 00:00:33]} 83. Kxe5 {[%clk 00:03:18]} {[%emt
00:00:12]} Ke3 {[%clk 00:01:28]} {[%emt 00:00:22]} 84. Rf5 {[%clk 00:02:56]}
{[%emt 00:00:52]} Ra2 {[%clk 00:01:32]} {[%emt 00:00:27]} 85. Rf6 {[%clk
00:02:12]} {[%emt 00:01:14]} Ra5+ {[%clk 00:01:49]} {[%emt 00:00:13]} 86. Kd6
{[%clk 00:02:12]} {[%emt 00:00:31]} Rxh5 {[%clk 00:02:03]} {[%emt 00:00:16]} 87.
Nc5 {[%clk 00:01:50]} {[%emt 00:00:51]} Bxg6 {[%clk 00:02:19]} {[%emt
00:00:13]} 1/2-1/2

[Event "Schack-SM 2022: Mastarklassen-Elit"]
[Site "Fyrishov, Idrottsgatan 2, Uppsala, Sweden"]
[Date "2022.07.07"]
[Round "6.2"]
[White "Thorn, Eric"]
[Black "Wiedenkeller, Michael"]
[Result "1/2-1/2"]
[TimeControl "90 minutes for 40 moves + 30 minutes for the rest of the game + 30 seconds per move from move one."]
[WhiteTitle "FM"]
[BlackTitle "IM"]
[WhiteFideId "1710729"]
[BlackFideId "1700146"]
[WhiteElo "2366"]
[BlackElo "2437"]

1. Nf3 {[%clk 01:28:59]} {[%emt 00:01:59]} d5 {[%clk 01:30:30]} {[%emt
00:00:30]} 2. c4 {[%clk 01:29:14]} {[%emt 00:00:15]} e6 {[%clk 01:28:58]}
{[%emt 00:02:01]} 3. d4 {[%clk 01:29:18]} {[%emt 00:00:28]} Nf6 {[%clk
01:28:52]} {[%emt 00:00:36]} 4. g3 {[%clk 01:29:42]} {[%emt 00:00:06]} Bb4+
{[%clk 01:24:48]} {[%emt 00:04:34]} 5. Bd2 {[%clk 01:29:46]} {[%emt 00:00:27]}
a5 {[%clk 01:25:11]} {[%emt 00:00:06]} 6. Qc2 {[%clk 01:29:26]} {[%emt
00:00:50]} Nc6 {[%clk 01:21:39]} {[%emt 00:04:02]} 7. Bg2 {[%clk 01:25:50]}
{[%emt 00:04:06]} dxc4 {[%clk 01:21:39]} {[%emt 00:00:30]} 8. Qxc4 {[%clk
01:18:37]} {[%emt 00:07:43]} Qd5 {[%clk 01:21:52]} {[%emt 00:00:17]} 9. Qxd5
{[%clk 01:11:41]} {[%emt 00:07:27]} exd5 {[%clk 01:15:17]} {[%emt 00:07:02]} 10.
O-O {[%clk 01:08:31]} {[%emt 00:03:42]} Bg4 {[%clk 01:06:50]} {[%emt 00:08:57]}
11. Be3 {[%clk 01:00:46]} {[%emt 00:08:15]} Na7 {[%clk 00:55:35]} {[%emt
00:11:44]} 12. Bf4 {[%clk 00:51:58]} {[%emt 00:09:18]} c6 {[%clk 00:52:22]}
{[%emt 00:03:43]} 13. a3 {[%clk 00:51:19]} {[%emt 00:01:09]} Be7 {[%clk
00:52:44]} {[%emt 00:00:07]} 14. Nc3 {[%clk 00:51:31]} {[%emt 00:00:20]} O-O
{[%clk 00:49:03]} {[%emt 00:04:10]} 15. Rfc1 {[%clk 00:47:56]} {[%emt
00:04:05]} Rfe8 {[%clk 00:44:01]} {[%emt 00:05:32]} 16. Nd2 {[%clk 00:35:47]}
{[%emt 00:12:40]} Be6 {[%clk 00:35:35]} {[%emt 00:08:56]} 17. Nb3 {[%clk
00:34:19]} {[%emt 00:01:58]} b6 {[%clk 00:20:36]} {[%emt 00:15:28]} 18. Na4
{[%clk 00:31:04]} {[%emt 00:03:45]} Bd8 {[%clk 00:20:22]} {[%emt 00:00:45]} 19.
Bg5 {[%clk 00:26:46]} {[%emt 00:04:48]} h6 {[%clk 00:18:13]} {[%emt 00:02:38]}
20. Bxf6 {[%clk 00:23:40]} {[%emt 00:03:37]} Bxf6 {[%clk 00:18:20]} {[%emt
00:00:22]} 21. e3 {[%clk 00:23:41]} {[%emt 00:00:29]} Rab8 {[%clk 00:18:06]}
{[%emt 00:00:44]} 22. Nd2 {[%clk 00:22:17]} {[%emt 00:01:53]} Bd7 {[%clk
00:14:56]} {[%emt 00:03:41]} 23. Nc3 {[%clk 00:20:29]} {[%emt 00:02:19]} Nc8
{[%clk 00:10:58]} {[%emt 00:04:27]} 24. b4 {[%clk 00:19:53]} {[%emt 00:01:07]}
Nd6 {[%clk 00:10:55]} {[%emt 00:00:34]} 25. bxa5 {[%clk 00:13:50]} {[%emt
00:06:32]} bxa5 {[%clk 00:09:09]} {[%emt 00:02:16]} 26. Na4 {[%clk 00:14:10]}
{[%emt 00:00:09]} Be7 {[%clk 00:08:24]} {[%emt 00:01:15]} 27. Nc5 {[%clk
00:14:01]} {[%emt 00:00:40]} Bf5 {[%clk 00:08:34]} {[%emt 00:00:20]} 28. Ncb3
{[%clk 00:13:25]} {[%emt 00:01:06]} a4 {[%clk 00:06:38]} {[%emt 00:02:25]} 29.
Na5 {[%clk 00:13:48]} {[%emt 00:00:07]} Rb2 {[%clk 00:06:34]} {[%emt 00:00:34]}
30. Nf3 {[%clk 00:11:51]} {[%emt 00:02:27]} Ne4 {[%clk 00:06:02]} {[%emt
00:01:03]} 31. Nxc6 {[%clk 00:09:04]} {[%emt 00:03:18]} Nxf2 {[%clk 00:06:17]}
{[%emt 00:00:14]} 32. Nxe7+ {[%clk 00:07:05]} {[%emt 00:02:30]} Rxe7 {[%clk
00:06:43]} {[%emt 00:00:03]} 33. Rf1 {[%clk 00:05:35]} {[%emt 00:01:59]} Nh3+
{[%clk 00:05:50]} {[%emt 00:01:24]} 34. Kh1 {[%clk 00:01:00]} {[%emt 00:05:05]}
Rxe3 {[%clk 00:05:20]} {[%emt 00:00:59]} 35. Rae1 {[%clk 00:00:47]} {[%emt
00:00:44]} Rxe1 {[%clk 00:02:48]} {[%emt 00:03:02]} 36. Rxe1 {[%clk 00:00:53]}
{[%emt 00:00:23]} Rb3 {[%clk 00:01:47]} {[%emt 00:01:31]} 37. Nh4 {[%clk
00:00:35]} {[%emt 00:00:48]} Be4 {[%clk 00:02:04]} {[%emt 00:00:13]} 38. Bxe4
{[%clk 00:00:34]} {[%emt 00:00:32]} Nf2+ {[%clk 00:01:35]} {[%emt 00:00:59]} 39.
Kg1 {[%clk 00:00:56]} {[%emt 00:00:07]} Nxe4 {[%clk 00:01:57]} {[%emt
00:00:09]} 40. Nf5 {[%clk 00:00:53]} {[%emt 00:00:32]} Kf8 {[%clk 00:01:03]}
{[%emt 00:01:24]} 41. Ne3 {[%clk 00:29:27]} {[%emt 00:01:56]} Nc3 {[%clk
00:27:02]} {[%emt 00:04:31]} 42. Ra1 {[%clk 00:19:43]} {[%emt 00:10:14]} g6
{[%clk 00:24:56]} {[%emt 00:02:36]} 43. Kg2 {[%clk 00:16:13]} {[%emt 00:03:58]}
Rb2+ {[%clk 00:19:38]} {[%emt 00:05:49]} 44. Kf3 {[%clk 00:08:56]} {[%emt
00:07:48]} Rxh2 {[%clk 00:19:05]} {[%emt 00:01:04]} 45. Rc1 {[%clk 00:09:16]}
{[%emt 00:00:09]} Nb5 {[%clk 00:18:23]} {[%emt 00:01:12]} 46. Rc8+ {[%clk
00:06:32]} {[%emt 00:03:15]} Kg7 {[%clk 00:18:41]} {[%emt 00:00:11]} 47. Nxd5
{[%clk 00:06:59]} {[%emt 00:00:03]} Nxd4+ {[%clk 00:16:47]} {[%emt 00:02:24]}
48. Ke4 {[%clk 00:07:22]} {[%emt 00:00:07]} Nb5 {[%clk 00:15:35]} {[%emt
00:01:40]} 49. Ra8 {[%clk 00:04:59]} {[%emt 00:02:55]} Rd2 {[%clk 00:10:12]}
{[%emt 00:05:52]} 50. Nf4 {[%clk 00:01:07]} {[%emt 00:04:23]} Ra2 {[%clk
00:06:50]} {[%emt 00:03:52]} 51. Ra5 {[%clk 00:01:00]} {[%emt 00:00:37]} Nd6+
{[%clk 00:06:37]} {[%emt 00:00:43]} 52. Kd5 {[%clk 00:01:06]} {[%emt 00:00:24]}
Nf5 {[%clk 00:04:18]} {[%emt 00:02:48]} 53. Rxa4 {[%clk 00:01:16]} {[%emt
00:00:22]} Nxg3 {[%clk 00:04:43]} {[%emt 00:00:05]} 54. Ra7 {[%clk 00:00:56]}
{[%emt 00:00:50]} Ne2 {[%clk 00:03:53]} {[%emt 00:01:19]} 55. Ne6+ {[%clk
00:00:37]} {[%emt 00:00:49]} Kf6 {[%clk 00:04:03]} {[%emt 00:00:20]} 56. Nc5
{[%clk 00:00:46]} {[%emt 00:00:21]} Rd2+ {[%clk 00:02:51]} {[%emt 00:01:42]} 57.
Ke4 {[%clk 00:00:44]} {[%emt 00:00:32]} Nc3+ {[%clk 00:03:07]} {[%emt
00:00:15]} 58. Ke3 {[%clk 00:00:46]} {[%emt 00:00:28]} Rd5 {[%clk 00:03:04]}
{[%emt 00:00:33]} 59. Nd7+ {[%clk 00:00:46]} {[%emt 00:00:29]} Kg7 {[%clk
00:03:25]} {[%emt 00:00:09]} 60. Nb6 {[%clk 00:00:43]} {[%emt 00:00:35]} Rd6
{[%clk 00:02:56]} {[%emt 00:00:58]} 61. Nc4 {[%clk 00:00:45]} {[%emt 00:00:28]}
Re6+ {[%clk 00:03:12]} {[%emt 00:00:14]} 62. Kd3 {[%clk 00:01:00]} {[%emt
00:00:14]} Nb5 {[%clk 00:03:12]} {[%emt 00:00:31]} 63. Rd7 {[%clk 00:00:39]}
{[%emt 00:00:50]} Ra6 {[%clk 00:02:47]} {[%emt 00:00:55]} 64. Ne5 {[%clk
00:00:39]} {[%emt 00:00:31]} Rxa3+ {[%clk 00:00:51]} {[%emt 00:02:25]} 65. Kc4
{[%clk 00:00:58]} {[%emt 00:00:11]} Ra7 {[%clk 00:01:07]} {[%emt 00:00:14]} 66.
Kxb5 {[%clk 00:01:05]} {[%emt 00:00:23]} Rxd7 67. Nxd7 {[%clk 00:01:31]} h5
{[%clk 00:01:59]} {[%emt 00:00:04]} 68. Kc4 {[%clk 00:01:26]} {[%emt 00:00:36]}
h4 {[%clk 00:02:21]} {[%emt 00:00:07]} 69. Nc5 {[%clk 00:01:16]} {[%emt
00:00:40]} Kf6 {[%clk 00:02:07]} {[%emt 00:00:44]} 70. Kd3 {[%clk 00:01:20]}
{[%emt 00:00:27]} Kf5 {[%clk 00:01:32]} {[%emt 00:01:04]} 71. Ke3 {[%clk
00:01:28]} {[%emt 00:00:23]} g5 {[%clk 00:01:22]} {[%emt 00:00:40]} 72. Ne4
{[%clk 00:01:28]} {[%emt 00:00:30]} h3 {[%clk 00:01:14]} {[%emt 00:00:38]} 73.
Ng3+ {[%clk 00:00:50]} {[%emt 00:01:07]} Kg4 {[%clk 00:01:37]} {[%emt
00:00:07]} 74. Nf1 {[%clk 00:00:51]} {[%emt 00:00:29]} f5 {[%clk 00:01:51]}
{[%emt 00:00:17]} 75. Kf2 {[%clk 00:01:16]} {[%emt 00:00:05]} Kf4 {[%clk
00:01:39]} {[%emt 00:00:41]} 76. Ng3 {[%clk 00:01:11]} {[%emt 00:00:35]} g4
{[%clk 00:00:44]} {[%emt 00:01:27]} 77. Ne2+ {[%clk 00:01:30]} {[%emt
00:00:10]} Ke4 {[%clk 00:00:55]} {[%emt 00:00:19]} 78. Kg3 {[%clk 00:01:20]}
{[%emt 00:00:40]} Ke3 {[%clk 00:00:34]} {[%emt 00:00:51]} 79. Nf4 {[%clk
00:01:49]} Kd2 {[%clk 00:00:51]} {[%emt 00:00:13]} 80. Kf2 {[%clk 00:01:25]}
{[%emt 00:00:55]} h2 {[%clk 00:00:38]} {[%emt 00:00:43]} 81. Kg2 {[%clk
00:01:48]} {[%emt 00:00:07]} Ke3 {[%clk 00:00:54]} {[%emt 00:00:14]} 82. Nh5
{[%clk 00:00:56]} {[%emt 00:01:22]} h1=Q+ {[%clk 00:00:32]} {[%emt 00:00:51]}
83. Kxh1 {[%clk 00:01:25]} {[%emt 00:00:01]} Kf2 {[%clk 00:00:48]} {[%emt
00:00:14]} 84. Nf6 {[%clk 00:00:48]} {[%emt 00:01:07]} g3 {[%clk 00:00:50]}
{[%emt 00:00:29]} 85. Ne4+ {[%clk 00:00:50]} {[%emt 00:00:28]} Kf3 {[%clk
00:01:05]} {[%emt 00:00:15]} 86. Ng5+ {[%clk 00:01:04]} {[%emt 00:00:15]} Kf2
{[%clk 00:00:54]} {[%emt 00:00:41]} 87. Ne4+ {[%clk 00:01:31]} {[%emt
00:00:04]} fxe4 {[%clk 00:00:56]} {[%emt 00:00:28]} 1/2-1/2